[Event "Titled Tuesday Blitz October 31 Early 2023"]
[White "De Souza, Cristiano Gomes"]
[Black "Goswami, Vedant"]
[WhiteFideId "2151758"]
[BlackFideId "5003725"]
[WhiteElo "2249"]
[BlackElo "2372"]
[Result "1-0"]
[Round "6"]
[TimeControl "180+1"]
[Date "2023.10.31"]
[WhiteClock "0:02:33"]
[BlackClock "0:01:56"]
[Board "131"]

1. d4 {[%clk 0:02:58]}  b6 {[%clk 0:02:53]} 2. c4 {[%clk 0:02:58]}  Bb7 {[%clk 0:02:52]} 3. Nc3 {[%clk 0:02:59]}  Nf6 {[%clk 0:02:48]} 4. Nf3 {[%clk 0:02:59]}  e6 {[%clk 0:02:47]} 5. g3 {[%clk 0:02:57]}  Bb4 {[%clk 0:02:42]} 6. Qc2 {[%clk 0:02:57]}  Be4 {[%clk 0:02:34]} 7. Qd2 {[%clk 0:02:53]}  Nc6 {[%clk 0:02:31]} 8. Bg2 {[%clk 0:02:51]}  O-O {[%clk 0:02:26]} 9. O-O {[%clk 0:02:51]}  Bg6 {[%clk 0:02:26]} 10. Nh4 {[%clk 0:02:45]}  Ne4 {[%clk 0:02:16]} 11. Qe3 {[%clk 0:02:44]}  Nxc3 {[%clk 0:02:00]} 12. bxc3 {[%clk 0:02:43]}  Be7 {[%clk 0:02:00]} 13. Nxg6 {[%clk 0:02:42]}  hxg6 {[%clk 0:01:59]} 14. d5 {[%clk 0:02:41]}  Na5 {[%clk 0:01:57]} 15. dxe6 {[%clk 0:02:40]}  dxe6 {[%clk 0:01:55]} 16. Bxa8 {[%clk 0:02:39]}  Qb8 {[%clk 0:01:55]} 17. Bf3 {[%clk 0:02:33]}  Qa8 {[%clk 0:01:56]} 1-0


[Site "https://www.chess.com"]

[Event "Titled Tuesday Blitz October 31 Early 2023"]
[White "Kuchava, Ana"]
[Black "LiadCuba"]
[WhiteFideId "13605348"]
[WhiteElo "2240"]
[BlackElo "2362"]
[Result "1-0"]
[Round "6"]
[TimeControl "180+1"]
[Date "2023.10.31"]
[WhiteClock "0:00:04"]
[BlackClock "0:00:00"]
[Board "132"]

1. d4 {[%clk 0:03:00]}  d5 {[%clk 0:02:59]} 2. Nf3 {[%clk 0:03:00]}  Nf6 {[%clk 0:02:59]} 3. c4 {[%clk 0:03:00]}  e6 {[%clk 0:02:58]} 4. Nc3 {[%clk 0:02:59]}  c5 {[%clk 0:02:59]} 5. cxd5 {[%clk 0:02:57]}  Nxd5 {[%clk 0:02:58]} 6. e4 {[%clk 0:02:56]}  Nxc3 {[%clk 0:02:58]} 7. bxc3 {[%clk 0:02:57]}  cxd4 {[%clk 0:02:58]} 8. cxd4 {[%clk 0:02:57]}  Bb4+ {[%clk 0:02:59]} 9. Bd2 {[%clk 0:02:58]}  Bxd2+ {[%clk 0:03:00]} 10. Qxd2 {[%clk 0:02:59]}  O-O {[%clk 0:03:00]} 11. Bd3 {[%clk 0:02:56]}  Nc6 {[%clk 0:03:00]} 12. Qe3 {[%clk 0:02:40]}  Qa5+ {[%clk 0:02:47]} 13. Ke2 {[%clk 0:02:37]}  Nb4 {[%clk 0:02:44]} 14. Rhc1 {[%clk 0:02:17]}  b6 {[%clk 0:02:34]} 15. Bc4 {[%clk 0:02:09]}  Ba6 {[%clk 0:02:32]} 16. Qb3 {[%clk 0:01:39]}  Rac8 {[%clk 0:02:21]} 17. Bxa6 {[%clk 0:01:32]}  Qxa6+ {[%clk 0:02:21]} 18. Ke3 {[%clk 0:01:30]}  Qb5 {[%clk 0:01:59]} 19. Rc3 {[%clk 0:01:16]}  a5 {[%clk 0:01:47]} 20. a3 {[%clk 0:01:00]}  Rxc3+ {[%clk 0:01:32]} 21. Qxc3 {[%clk 0:01:00]}  Na6 {[%clk 0:01:24]} 22. Rc1 {[%clk 0:00:57]}  h6 {[%clk 0:01:24]} 23. Ne5 {[%clk 0:00:57]}  a4 {[%clk 0:01:14]} 24. Qc4 {[%clk 0:00:55]}  Qb2 {[%clk 0:01:11]} 25. Nd3 {[%clk 0:00:45]}  b5 {[%clk 0:01:02]} 26. Nxb2 {[%clk 0:00:44]}  bxc4 {[%clk 0:01:02]} 27. Rxc4 {[%clk 0:00:42]}  Rb8 {[%clk 0:00:58]} 28. Rxa4 {[%clk 0:00:35]}  Nc7 {[%clk 0:00:54]} 29. Rb4 {[%clk 0:00:32]}  Ra8 {[%clk 0:00:51]} 30. Nc4 {[%clk 0:00:28]}  f5 {[%clk 0:00:48]} 31. f3 {[%clk 0:00:24]}  fxe4 {[%clk 0:00:44]} 32. fxe4 {[%clk 0:00:25]}  Ne8 {[%clk 0:00:37]} 33. a4 {[%clk 0:00:23]}  Nf6 {[%clk 0:00:34]} 34. a5 {[%clk 0:00:22]}  Ng4+ {[%clk 0:00:32]} 35. Ke2 {[%clk 0:00:18]}  Rf8 {[%clk 0:00:29]} 36. a6 {[%clk 0:00:18]}  Rf2+ {[%clk 0:00:28]} 37. Kd3 {[%clk 0:00:18]}  Rxg2 {[%clk 0:00:23]} 38. a7 {[%clk 0:00:18]}  Ra2 {[%clk 0:00:23]} 39. Rb8+ {[%clk 0:00:17]}  Kh7 {[%clk 0:00:23]} 40. a8=Q {[%clk 0:00:18]}  Rxa8 {[%clk 0:00:22]} 41. Rxa8 {[%clk 0:00:19]}  Nxh2 {[%clk 0:00:22]} 42. Ra7 {[%clk 0:00:17]}  h5 {[%clk 0:00:21]} 43. Ne5 {[%clk 0:00:17]}  h4 {[%clk 0:00:20]} 44. Ke3 {[%clk 0:00:17]}  Kh6 {[%clk 0:00:18]} 45. Kf4 {[%clk 0:00:17]}  g5+ {[%clk 0:00:18]} 46. Ke3 {[%clk 0:00:17]}  g4 {[%clk 0:00:18]} 47. Kf4 {[%clk 0:00:17]}  g3 {[%clk 0:00:17]} 48. Ra2 {[%clk 0:00:17]}  Nf1 {[%clk 0:00:15]} 49. Kg4 {[%clk 0:00:15]}  Ne3+ {[%clk 0:00:11]} 50. Kxh4 {[%clk 0:00:16]}  g2 {[%clk 0:00:12]} 51. Ra1 {[%clk 0:00:15]}  Nf1 {[%clk 0:00:11]} 52. Nf3 {[%clk 0:00:15]}  Kg6 {[%clk 0:00:09]} 53. Kh3 {[%clk 0:00:15]}  Ne3 {[%clk 0:00:09]} 54. Nh4+ {[%clk 0:00:13]}  Kg5 {[%clk 0:00:08]} 55. Nxg2 {[%clk 0:00:14]}  Nc2 {[%clk 0:00:08]} 56. Ra5+ {[%clk 0:00:13]}  Kf6 {[%clk 0:00:08]} 57. d5 {[%clk 0:00:13]}  exd5 {[%clk 0:00:08]} 58. Rxd5 {[%clk 0:00:12]}  Nb4 {[%clk 0:00:07]} 59. Rd4 {[%clk 0:00:12]}  Nc2 {[%clk 0:00:07]} 60. Rd2 {[%clk 0:00:10]}  Nb4 {[%clk 0:00:06]} 61. Kg4 {[%clk 0:00:10]}  Ke5 {[%clk 0:00:07]} 62. Re2 {[%clk 0:00:08]}  Nc6 {[%clk 0:00:05]} 63. Nf4 {[%clk 0:00:08]}  Kd4 {[%clk 0:00:05]} 64. Ne6+ {[%clk 0:00:05]}  Ke5 {[%clk 0:00:04]} 65. Nc5 {[%clk 0:00:04]}  Nd4 {[%clk 0:00:04]} 66. Re1 {[%clk 0:00:04]}  Nc2 {[%clk 0:00:03]} 67. Nd7+ {[%clk 0:00:04]}  Ke6 {[%clk 0:00:02]} 68. Nc5+ {[%clk 0:00:04]}  Kd6 {[%clk 0:00:00]} 69. Nd3 {[%clk 0:00:04]} 1-0


[Site "https://www.chess.com"]

[Event "Titled Tuesday Blitz October 31 Early 2023"]
[White "Ovezdurdyyeva, Jemal"]
[Black "Souza, Gustavo Horokoski De"]
[WhiteFideId "14001888"]
[BlackFideId "2146584"]
[WhiteElo "2358"]
[BlackElo "2142"]
[Result "1/2-1/2"]
[Round "6"]
[TimeControl "180+1"]
[Date "2023.10.31"]
[WhiteClock "0:00:56"]
[BlackClock "0:00:21"]
[Board "133"]

1. e4 {[%clk 0:02:51]}  e6 {[%clk 0:02:59]} 2. d4 {[%clk 0:02:51]}  d5 {[%clk 0:03:00]} 3. Nd2 {[%clk 0:02:51]}  Nc6 {[%clk 0:02:59]} 4. Ngf3 {[%clk 0:02:50]}  Nf6 {[%clk 0:02:58]} 5. e5 {[%clk 0:02:43]}  Nd7 {[%clk 0:02:57]} 6. c3 {[%clk 0:02:43]}  f6 {[%clk 0:02:56]} 7. exf6 {[%clk 0:02:42]}  Qxf6 {[%clk 0:02:56]} 8. Bd3 {[%clk 0:02:42]}  Bd6 {[%clk 0:02:56]} 9. O-O {[%clk 0:02:40]}  O-O {[%clk 0:02:56]} 10. Qe2 {[%clk 0:02:38]}  e5 {[%clk 0:02:56]} 11. dxe5 {[%clk 0:02:36]}  Ndxe5 {[%clk 0:02:54]} 12. Bc2 {[%clk 0:02:34]}  Bg4 {[%clk 0:02:52]} 13. Rd1 {[%clk 0:02:23]}  Rae8 {[%clk 0:02:50]} 14. Qf1 {[%clk 0:02:07]}  Nxf3+ {[%clk 0:02:49]} 15. Nxf3 {[%clk 0:02:05]}  Bxf3 {[%clk 0:02:49]} 16. gxf3 {[%clk 0:02:05]}  Qxf3 {[%clk 0:02:49]} 17. Qg2 {[%clk 0:02:03]}  Qxd1+ {[%clk 0:02:29]} 18. Bxd1 {[%clk 0:02:02]}  Re1+ {[%clk 0:02:29]} 19. Qf1 {[%clk 0:02:02]}  Bxh2+ {[%clk 0:02:29]} 20. Kg2 {[%clk 0:02:01]}  Rxf1 {[%clk 0:02:28]} 21. Kxf1 {[%clk 0:02:02]}  Bf4 {[%clk 0:02:17]} 22. Kg2 {[%clk 0:01:57]}  Ne5 {[%clk 0:02:09]} 23. Bb3 {[%clk 0:01:56]}  c6 {[%clk 0:02:09]} 24. Bxf4 {[%clk 0:01:56]}  Rxf4 {[%clk 0:02:09]} 25. Re1 {[%clk 0:01:56]}  Ng6 {[%clk 0:02:05]} 26. Re8+ {[%clk 0:01:56]}  Kf7 {[%clk 0:02:04]} 27. Rb8 {[%clk 0:01:55]}  Re4 {[%clk 0:01:56]} 28. Rxb7+ {[%clk 0:01:54]}  Re7 {[%clk 0:01:56]} 29. Rb8 {[%clk 0:01:54]}  h5 {[%clk 0:01:49]} 30. Rc8 {[%clk 0:01:47]}  Re6 {[%clk 0:01:34]} 31. c4 {[%clk 0:01:43]}  Kf6 {[%clk 0:01:29]} 32. cxd5 {[%clk 0:01:43]}  Nf4+ {[%clk 0:01:29]} 33. Kg3 {[%clk 0:01:39]}  Nxd5 {[%clk 0:01:28]} 34. Rf8+ {[%clk 0:01:36]}  Ke7 {[%clk 0:01:21]} 35. Ra8 {[%clk 0:01:34]}  Rg6+ {[%clk 0:01:15]} 36. Kf3 {[%clk 0:01:26]}  Rf6+ {[%clk 0:01:14]} 37. Kg2 {[%clk 0:01:25]}  Nf4+ {[%clk 0:01:09]} 38. Kf3 {[%clk 0:01:19]}  Nd3+ {[%clk 0:00:58]} 39. Kg3 {[%clk 0:01:14]}  Nxf2 {[%clk 0:00:56]} 40. Rxa7+ {[%clk 0:01:15]}  Kd6 {[%clk 0:00:55]} 41. Rxg7 {[%clk 0:01:14]}  Ne4+ {[%clk 0:00:54]} 42. Kh4 {[%clk 0:01:13]}  Rf2 {[%clk 0:00:48]} 43. Kxh5 {[%clk 0:01:09]}  Rxb2 {[%clk 0:00:38]} 44. Rg6+ {[%clk 0:01:08]}  Kc5 {[%clk 0:00:35]} 45. Rg8 {[%clk 0:00:54]}  Rh2+ {[%clk 0:00:33]} 46. Kg6 {[%clk 0:00:55]}  Rg2+ {[%clk 0:00:31]} 47. Kf5 {[%clk 0:00:55]}  Rxg8 {[%clk 0:00:31]} 48. Bxg8 {[%clk 0:00:56]}  Nc3 {[%clk 0:00:30]} 49. Kf4 {[%clk 0:00:55]}  Kb4 {[%clk 0:00:31]} 50. Ke3 {[%clk 0:00:54]}  Ka3 {[%clk 0:00:29]} 51. Kd4 {[%clk 0:00:55]}  Nxa2 {[%clk 0:00:22]} 52. Bxa2 {[%clk 0:00:55]}  c5+ {[%clk 0:00:21]} 53. Kxc5 {[%clk 0:00:56]} 1/2-1/2


[Site "https://www.chess.com"]

[Event "Titled Tuesday Blitz October 31 Early 2023"]
[White "Harriott, Tyrell"]
[Black "Perez Cruz, Adianet"]
[WhiteFideId "2086484"]
[BlackFideId "3510115"]
[WhiteElo "2317"]
[BlackElo "1960"]
[Result "1-0"]
[Round "6"]
[TimeControl "180+1"]
[Date "2023.10.31"]
[WhiteClock "0:01:39"]
[BlackClock "0:01:14"]
[Board "135"]

1. d4 {[%clk 0:03:00]}  d5 {[%clk 0:02:59]} 2. e3 {[%clk 0:03:00]}  c6 {[%clk 0:02:58]} 3. Bd3 {[%clk 0:03:00]}  Nf6 {[%clk 0:02:58]} 4. f4 {[%clk 0:02:59]}  g6 {[%clk 0:02:58]} 5. Nf3 {[%clk 0:02:58]}  Bf5 {[%clk 0:02:59]} 6. O-O {[%clk 0:02:57]}  Bxd3 {[%clk 0:02:58]} 7. cxd3 {[%clk 0:02:58]}  e6 {[%clk 0:02:58]} 8. Nc3 {[%clk 0:02:56]}  Nbd7 {[%clk 0:02:58]} 9. b3 {[%clk 0:02:56]}  Bg7 {[%clk 0:02:55]} 10. Bb2 {[%clk 0:02:56]}  a6 {[%clk 0:02:53]} 11. Ba3 {[%clk 0:02:56]}  Bf8 {[%clk 0:02:51]} 12. Bb2 {[%clk 0:02:55]}  Bg7 {[%clk 0:02:50]} 13. e4 {[%clk 0:02:44]}  dxe4 {[%clk 0:02:49]} 14. dxe4 {[%clk 0:02:44]}  O-O {[%clk 0:02:49]} 15. Qe2 {[%clk 0:02:43]}  Re8 {[%clk 0:02:49]} 16. Kh1 {[%clk 0:02:34]}  Rc8 {[%clk 0:02:47]} 17. Ba3 {[%clk 0:02:28]}  Qa5 {[%clk 0:02:33]} 18. Bb2 {[%clk 0:02:20]}  c5 {[%clk 0:02:33]} 19. e5 {[%clk 0:02:15]}  Nd5 {[%clk 0:02:09]} 20. Nxd5 {[%clk 0:02:15]}  exd5 {[%clk 0:02:10]} 21. a3 {[%clk 0:02:10]}  c4 {[%clk 0:01:50]} 22. b4 {[%clk 0:02:06]}  Qd8 {[%clk 0:01:49]} 23. f5 {[%clk 0:02:02]}  gxf5 {[%clk 0:01:37]} 24. Qf2 {[%clk 0:01:59]}  Nf8 {[%clk 0:01:36]} 25. Nh4 {[%clk 0:01:58]}  Qg5 {[%clk 0:01:31]} 26. Nxf5 {[%clk 0:01:57]}  Ng6 {[%clk 0:01:28]} 27. Bc1 {[%clk 0:01:50]}  Qg4 {[%clk 0:01:21]} 28. Nxg7 {[%clk 0:01:47]}  Kxg7 {[%clk 0:01:17]} 29. Qxf7+ {[%clk 0:01:47]}  Kh8 {[%clk 0:01:17]} 30. Bh6 {[%clk 0:01:44]}  Re7 {[%clk 0:01:14]} 31. Bg7# {[%clk 0:01:39]} 1-0


[Site "https://www.chess.com"]

[Event "Titled Tuesday Blitz October 31 Early 2023"]
[White "Limontaite, Simona"]
[Black "Yelisieiev, Yevhenii"]
[WhiteFideId "12802506"]
[BlackFideId "14139642"]
[WhiteElo "2247"]
[BlackElo "2612"]
[Result "0-1"]
[Round "6"]
[TimeControl "180+1"]
[Date "2023.10.31"]
[WhiteClock "0:00:15"]
[BlackClock "0:01:51"]
[Board "137"]

1. d4 {[%clk 0:02:54]}  d5 {[%clk 0:02:57]} 2. c4 {[%clk 0:02:54]}  e6 {[%clk 0:02:57]} 3. Nc3 {[%clk 0:02:54]}  c6 {[%clk 0:02:55]} 4. e3 {[%clk 0:02:54]}  Nf6 {[%clk 0:02:53]} 5. Nf3 {[%clk 0:02:53]}  Bd6 {[%clk 0:02:54]} 6. Bd3 {[%clk 0:02:52]}  O-O {[%clk 0:02:54]} 7. O-O {[%clk 0:02:52]}  dxc4 {[%clk 0:02:54]} 8. Bxc4 {[%clk 0:02:52]}  b5 {[%clk 0:02:55]} 9. Bd3 {[%clk 0:02:52]}  Nbd7 {[%clk 0:02:53]} 10. Qe2 {[%clk 0:02:52]}  a6 {[%clk 0:02:50]} 11. Rd1 {[%clk 0:02:52]}  Qc7 {[%clk 0:02:49]} 12. e4 {[%clk 0:02:51]}  e5 {[%clk 0:02:49]} 13. h3 {[%clk 0:02:42]}  Bb7 {[%clk 0:02:49]} 14. Bg5 {[%clk 0:02:41]}  Rfe8 {[%clk 0:02:48]} 15. Rac1 {[%clk 0:02:38]}  h6 {[%clk 0:02:38]} 16. dxe5 {[%clk 0:02:25]}  Bxe5 {[%clk 0:02:34]} 17. Nxe5 {[%clk 0:02:24]}  Qxe5 {[%clk 0:02:34]} 18. Bh4 {[%clk 0:02:17]}  Nc5 {[%clk 0:02:32]} 19. Bg3 {[%clk 0:02:12]}  Qg5 {[%clk 0:02:31]} 20. Bb1 {[%clk 0:01:52]}  b4 {[%clk 0:02:28]} 21. Nd5 {[%clk 0:01:28]}  Nfxe4 {[%clk 0:02:28]} 22. Nc7 {[%clk 0:01:11]}  Nxg3 {[%clk 0:02:25]} 23. Qc2 {[%clk 0:00:41]}  Ne2+ {[%clk 0:02:22]} 24. Kh1 {[%clk 0:00:39]}  Nxc1 {[%clk 0:01:53]} 25. Qh7+ {[%clk 0:00:31]}  Kf8 {[%clk 0:01:54]} 26. Re1 {[%clk 0:00:15]}  Rxe1+ {[%clk 0:01:51]} 0-1


[Site "https://www.chess.com"]

[Event "Titled Tuesday Blitz October 31 Early 2023"]
[White "Clawitter, Craig"]
[Black "Iskusnyh, Sergei"]
[WhiteFideId "2023105"]
[BlackFideId "4120027"]
[WhiteElo "2244"]
[BlackElo "2571"]
[Result "1-0"]
[Round "6"]
[TimeControl "180+1"]
[Date "2023.10.31"]
[WhiteClock "0:00:31"]
[BlackClock "0:00:09"]
[Board "138"]

1. e4 {[%clk 0:03:00]}  e6 {[%clk 0:02:51]} 2. d4 {[%clk 0:03:00]}  d5 {[%clk 0:02:51]} 3. e5 {[%clk 0:03:01]}  c5 {[%clk 0:02:50]} 4. c3 {[%clk 0:03:02]}  Qb6 {[%clk 0:02:47]} 5. Nf3 {[%clk 0:03:02]}  Nc6 {[%clk 0:02:46]} 6. a3 {[%clk 0:03:01]}  c4 {[%clk 0:02:45]} 7. Nbd2 {[%clk 0:03:01]}  Bd7 {[%clk 0:02:35]} 8. g3 {[%clk 0:03:01]}  Na5 {[%clk 0:02:26]} 9. Bg2 {[%clk 0:02:59]}  O-O-O {[%clk 0:02:09]} 10. O-O {[%clk 0:02:59]}  f6 {[%clk 0:02:00]} 11. Re1 {[%clk 0:02:50]}  fxe5 {[%clk 0:01:54]} 12. Nxe5 {[%clk 0:02:50]}  Nh6 {[%clk 0:01:15]} 13. Bh3 {[%clk 0:02:47]}  Re8 {[%clk 0:01:13]} 14. Qf3 {[%clk 0:02:29]}  Bd6 {[%clk 0:01:02]} 15. Nxd7 {[%clk 0:02:19]}  Kxd7 {[%clk 0:01:03]} 16. Qxd5 {[%clk 0:02:12]}  Nf5 {[%clk 0:00:53]} 17. Bxf5 {[%clk 0:01:33]}  exf5 {[%clk 0:00:54]} 18. Qxf5+ {[%clk 0:01:33]}  Kd8 {[%clk 0:00:50]} 19. Ne4 {[%clk 0:01:21]}  Nb3 {[%clk 0:00:41]} 20. Bg5+ {[%clk 0:01:20]}  Be7 {[%clk 0:00:35]} 21. Qd5+ {[%clk 0:01:07]}  Kc8 {[%clk 0:00:27]} 22. Bxe7 {[%clk 0:00:59]}  Rxe7 {[%clk 0:00:23]} 23. Nd6+ {[%clk 0:00:57]}  Kb8 {[%clk 0:00:21]} 24. Rxe7 {[%clk 0:00:56]}  Na5 {[%clk 0:00:18]} 25. Nxc4 {[%clk 0:00:42]}  Nxc4 {[%clk 0:00:17]} 26. Qxc4 {[%clk 0:00:42]}  Qxb2 {[%clk 0:00:16]} 27. Qc7+ {[%clk 0:00:34]}  Ka8 {[%clk 0:00:16]} 28. Rae1 {[%clk 0:00:33]}  a6 {[%clk 0:00:13]} 29. Re8+ {[%clk 0:00:31]}  Rxe8 {[%clk 0:00:14]} 30. Rxe8+ {[%clk 0:00:32]}  Ka7 {[%clk 0:00:14]} 31. Qc5+ {[%clk 0:00:31]}  Qb6 {[%clk 0:00:09]} 32. Ra8+ {[%clk 0:00:31]} 1-0


[Site "https://www.chess.com"]

[Event "Titled Tuesday Blitz October 31 Early 2023"]
[White "Shishkov, Andrei"]
[Black "Faci, Fadil"]
[WhiteFideId "4500563"]
[BlackFideId "4645162"]
[WhiteElo "2430"]
[BlackElo "2230"]
[Result "1-0"]
[Round "6"]
[TimeControl "180+1"]
[Date "2023.10.31"]
[WhiteClock "0:01:41"]
[BlackClock "0:01:24"]
[Board "141"]

1. d4 {[%clk 0:03:00]}  Nf6 {[%clk 0:02:57]} 2. c4 {[%clk 0:03:00]}  c5 {[%clk 0:02:56]} 3. d5 {[%clk 0:03:00]}  d6 {[%clk 0:02:56]} 4. Nc3 {[%clk 0:03:00]}  g6 {[%clk 0:02:57]} 5. e4 {[%clk 0:03:01]}  Bg7 {[%clk 0:02:57]} 6. h3 {[%clk 0:03:01]}  e6 {[%clk 0:02:57]} 7. Nf3 {[%clk 0:03:02]}  exd5 {[%clk 0:02:58]} 8. cxd5 {[%clk 0:03:03]}  O-O {[%clk 0:02:58]} 9. Bd3 {[%clk 0:03:03]}  a6 {[%clk 0:02:58]} 10. a4 {[%clk 0:03:02]}  Re8 {[%clk 0:02:57]} 11. O-O {[%clk 0:03:03]}  Nbd7 {[%clk 0:02:52]} 12. Bf4 {[%clk 0:03:00]}  Nf8 {[%clk 0:02:52]} 13. Nd2 {[%clk 0:02:56]}  Nh5 {[%clk 0:02:32]} 14. Bh2 {[%clk 0:02:55]}  Be5 {[%clk 0:02:25]} 15. f4 {[%clk 0:02:54]}  Bd4+ {[%clk 0:02:25]} 16. Kh1 {[%clk 0:02:54]}  Qh4 {[%clk 0:02:24]} 17. Qe1 {[%clk 0:02:36]}  Qxe1 {[%clk 0:02:20]} 18. Raxe1 {[%clk 0:02:37]}  Bd7 {[%clk 0:02:13]} 19. a5 {[%clk 0:02:32]}  Ng7 {[%clk 0:02:07]} 20. Nc4 {[%clk 0:02:16]}  Bxc3 {[%clk 0:02:07]} 21. bxc3 {[%clk 0:02:15]}  Bb5 {[%clk 0:02:07]} 22. Rf3 {[%clk 0:02:03]}  Bxc4 {[%clk 0:02:06]} 23. Bxc4 {[%clk 0:02:03]}  f5 {[%clk 0:02:04]} 24. e5 {[%clk 0:02:03]}  Rad8 {[%clk 0:02:00]} 25. Rfe3 {[%clk 0:01:46]}  Kf7 {[%clk 0:01:35]} 26. e6+ {[%clk 0:01:41]}  Kf6 {[%clk 0:01:24]} 27. e7 {[%clk 0:01:41]} 1-0


[Site "https://www.chess.com"]

[Event "Titled Tuesday Blitz October 31 Early 2023"]
[White "Quirke, Jeffrey"]
[Black "Novikova, Galina"]
[WhiteFideId "2013029"]
[BlackFideId "4157095"]
[WhiteElo "2215"]
[BlackElo "2413"]
[Result "0-1"]
[Round "6"]
[TimeControl "180+1"]
[Date "2023.10.31"]
[WhiteClock "0:00:10"]
[BlackClock "0:01:15"]
[Board "142"]

1. e4 {[%clk 0:03:00]}  e5 {[%clk 0:03:00]} 2. d4 {[%clk 0:03:00]}  exd4 {[%clk 0:02:58]} 3. Qxd4 {[%clk 0:03:01]}  Nc6 {[%clk 0:02:58]} 4. Qe3 {[%clk 0:03:01]}  Nf6 {[%clk 0:02:56]} 5. Bd2 {[%clk 0:03:00]}  Bd6 {[%clk 0:02:50]} 6. Nc3 {[%clk 0:02:58]}  Qe7 {[%clk 0:02:48]} 7. O-O-O {[%clk 0:02:55]}  Bc5 {[%clk 0:02:47]} 8. Qe1 {[%clk 0:02:42]}  d6 {[%clk 0:02:45]} 9. h3 {[%clk 0:02:30]}  O-O {[%clk 0:02:44]} 10. f4 {[%clk 0:02:25]}  a6 {[%clk 0:02:42]} 11. Nf3 {[%clk 0:02:24]}  b5 {[%clk 0:02:40]} 12. Bd3 {[%clk 0:02:08]}  b4 {[%clk 0:02:40]} 13. Nd5 {[%clk 0:01:51]}  Nxd5 {[%clk 0:02:36]} 14. exd5 {[%clk 0:01:51]}  Qxe1 {[%clk 0:02:36]} 15. Rdxe1 {[%clk 0:01:47]}  Na7 {[%clk 0:02:33]} 16. Re7 {[%clk 0:01:36]}  Nb5 {[%clk 0:02:24]} 17. Rhe1 {[%clk 0:01:28]}  Bb7 {[%clk 0:02:16]} 18. Bc4 {[%clk 0:01:00]}  h6 {[%clk 0:02:13]} 19. Kb1 {[%clk 0:00:52]}  Rac8 {[%clk 0:02:12]} 20. Nh4 {[%clk 0:00:38]}  Bf2 {[%clk 0:01:40]} 21. Nf5 {[%clk 0:00:27]}  Bxe1 {[%clk 0:01:39]} 22. Rxe1 {[%clk 0:00:28]}  Rce8 {[%clk 0:01:32]} 23. Bxb4 {[%clk 0:00:27]}  Rxe1+ {[%clk 0:01:32]} 24. Bxe1 {[%clk 0:00:28]}  Re8 {[%clk 0:01:29]} 25. Bd2 {[%clk 0:00:28]}  Kh7 {[%clk 0:01:22]} 26. a4 {[%clk 0:00:27]}  Na7 {[%clk 0:01:19]} 27. Nd4 {[%clk 0:00:25]}  Nc8 {[%clk 0:01:17]} 28. c3 {[%clk 0:00:10]}  Nb6 {[%clk 0:01:15]} 0-1


[Site "https://www.chess.com"]

[Event "Titled Tuesday Blitz October 31 Early 2023"]
[White "Rodriguez Dominguez, Melissa"]
[Black "Zaksaite, Salomeja"]
[WhiteFideId "3517560"]
[BlackFideId "12801496"]
[WhiteElo "2192"]
[BlackElo "2344"]
[Result "0-1"]
[Round "6"]
[TimeControl "180+1"]
[Date "2023.10.31"]
[WhiteClock "0:00:19"]
[BlackClock "0:00:22"]
[Board "145"]

1. e4 {[%clk 0:03:00]}  d6 {[%clk 0:02:58]} 2. d4 {[%clk 0:02:58]}  Nf6 {[%clk 0:02:57]} 3. Nc3 {[%clk 0:02:57]}  g6 {[%clk 0:02:57]} 4. Be3 {[%clk 0:02:56]}  Bg7 {[%clk 0:02:57]} 5. Qd2 {[%clk 0:02:56]}  a6 {[%clk 0:02:56]} 6. O-O-O {[%clk 0:02:56]}  b5 {[%clk 0:02:55]} 7. f3 {[%clk 0:02:55]}  Nbd7 {[%clk 0:02:55]} 8. Bh6 {[%clk 0:02:55]}  Bxh6 {[%clk 0:02:53]} 9. Qxh6 {[%clk 0:02:56]}  Nb6 {[%clk 0:02:53]} 10. e5 {[%clk 0:02:52]}  Nfd5 {[%clk 0:02:48]} 11. Ne4 {[%clk 0:02:43]}  Be6 {[%clk 0:02:26]} 12. Qg7 {[%clk 0:02:41]}  Kd7 {[%clk 0:02:24]} 13. Ng5 {[%clk 0:02:31]}  Ne3 {[%clk 0:02:11]} 14. Re1 {[%clk 0:02:23]}  Nxf1 {[%clk 0:02:07]} 15. Rxf1 {[%clk 0:02:24]}  Qf8 {[%clk 0:01:57]} 16. Qxf8 {[%clk 0:02:18]}  Raxf8 {[%clk 0:01:58]} 17. Nxe6 {[%clk 0:02:16]}  fxe6 {[%clk 0:01:56]} 18. Ne2 {[%clk 0:02:12]}  Nc4 {[%clk 0:01:47]} 19. b3 {[%clk 0:02:08]}  Ne3 {[%clk 0:01:46]} 20. Rf2 {[%clk 0:02:08]}  Rc8 {[%clk 0:01:30]} 21. Kd2 {[%clk 0:01:52]}  Nf5 {[%clk 0:01:23]} 22. g4 {[%clk 0:01:51]}  Nh4 {[%clk 0:01:14]} 23. f4 {[%clk 0:01:34]}  h5 {[%clk 0:01:07]} 24. h3 {[%clk 0:01:28]}  hxg4 {[%clk 0:01:05]} 25. hxg4 {[%clk 0:01:28]}  Nf3+ {[%clk 0:01:05]} 26. Rxf3 {[%clk 0:01:26]}  Rxh1 {[%clk 0:01:06]} 27. Ng3 {[%clk 0:01:21]}  Ra1 {[%clk 0:01:01]} 28. Ne4 {[%clk 0:00:56]}  Rxa2 {[%clk 0:00:58]} 29. Rf1 {[%clk 0:00:54]}  Rh8 {[%clk 0:00:38]} 30. Rf2 {[%clk 0:00:27]}  a5 {[%clk 0:00:37]} 31. Nc3 {[%clk 0:00:25]}  Ra1 {[%clk 0:00:33]} 32. Nxb5 {[%clk 0:00:25]}  a4 {[%clk 0:00:32]} 33. bxa4 {[%clk 0:00:25]}  Rxa4 {[%clk 0:00:32]} 34. Nc3 {[%clk 0:00:25]}  Rxd4+ {[%clk 0:00:31]} 35. Ke3 {[%clk 0:00:25]}  c5 {[%clk 0:00:29]} 36. Nb5 {[%clk 0:00:24]}  Rb4 {[%clk 0:00:23]} 37. Nc3 {[%clk 0:00:22]}  Rh3+ {[%clk 0:00:22]} 38. Kd2 {[%clk 0:00:22]}  Rd4+ {[%clk 0:00:22]} 39. Kc1 {[%clk 0:00:19]}  Rxc3 {[%clk 0:00:22]} 0-1


[Site "https://www.chess.com"]